fUSD/lending_fUSD_20251027
["ID","MTS","AMOUNT","RATE_DAILY","PERIOD"]
[392496577,1761568299195,1000.0,0.00037229,60]
[392496578,1761568300522,-283.61588699,0.00014999,2]
[392496579,1761568300857,316.81881314,0.00014899,2]
[392496580,1761568302980,-45.63062591,0.00014999,2]
[392496581,1761568303002,-137.37583533,0.00014999,2]
[392496582,1761568304520,-358.11786165,0.00014999,2]
[392496583,1761568307984,-4.50630302,0.00014999,2]
[392496584,1761568308006,-173.5094802,0.00016499,2]
[392496585,1761568311400,-274.74370513,0.00016499,2]
[392496586,1761568311913,1000.0,0.00037229,60]
[392496587,1761568314638,-183.24934158,0.00014999,2]
[392496588,1761568316768,-177.74955,0.00014999,2]
[392496589,1761568319550,-141.98216497,0.00014999,2]
[392496590,1761568319573,-43.59575812,0.00016499,2]
[392496591,1761568321560,-195.0,0.00016499,2]
[392496592,1761568324295,-162.57170921,0.00016499,2]
[392496593,1761568326979,-91.93869997,0.00016499,2]
[392496594,1761568327000,-166.23188831,0.00018149,2]
[392496596,1761568337391,1000.0,0.00037229,60]
[392496597,1761568343309,-318.50437293,0.00018149,2]
[392496598,1761568347749,-290.66465385,0.00018149,2]
[392496599,1761568348409,651.28491803,0.00012,2]
[392496600,1761568350987,-348.23602795,0.00018149,2]
[392496601,1761568356267,-185.75706546,0.00018149,2]
[392496604,1761568374368,-192.06017072,0.00018149,2]
[392496605,1761568376127,1000.0,0.00037229,60]
[392496607,1761568427047,1000.0,0.0003714,120]
[392496608,1761568433343,-500.0,0.00014999,2]
[392496609,1761568433381,-38.43173279,0.00014999,2]
[392496610,1761568436180,-154.74435891,0.00014999,2]
[392496611,1761568438845,-246.38486135,0.00014999,2]
[392496612,1761568443675,-60.43904695,0.00014999,2]
[392496613,1761568443698,-366.9189142,0.00014999,2]
[392496615,1761568461203,4222.11,0.0003714,60]
[392496617,1761568463240,-133.0810858,0.00014999,2]
[392496618,1761568463263,-188.95863439,0.00014999,2]
[392496619,1761568469427,-311.04136561,0.00014999,2]
[392496620,1761568469450,-100.93876398,0.00014999,2]
[392496621,1761568471036,-179.50218907,0.00014999,2]
[392496622,1761568471224,1607.43969275,0.0003714,60]
[392496623,1761568475930,-219.55904695,0.00014999,2]
[392496624,1761568475956,-80.78771954,0.00018149,2]
[392496625,1761568475978,-64.10461833,0.00018149,2]
[392496626,1761568480224,-176.76762604,0.00018149,2]
[392496627,1761568480246,-65.17495162,0.00018149,2]
[392496633,1761568635130,500.0,0.00012,2]
[392496634,1761568635178,500.0,0.00012,2]
[392496635,1761568635560,500.0,0.00012,2]
[392496636,1761568635598,500.0,0.00012,2]
[392496637,1761568635990,500.0,0.00012,2]
[392496638,1761568640692,500.0,0.00012,2]
[392496639,1761568644246,500.0,0.00012,2]
[392496642,1761568679309,150.111,0.0003714,50]
[392496643,1761568688232,-191.84646499,0.00014999,2]
[392496644,1761568691796,-308.15353501,0.00014999,2]
[392496645,1761568691818,-111.63712343,0.00014999,2]
[392496646,1761568693768,-161.15891409,0.00014999,2]
[392496647,1761568696849,-227.20396248,0.00014999,2]
[392496648,1761568696876,-79.09305213,0.00014999,2]
[392496649,1761568700715,-215.70141527,0.00014999,2]
[392496650,1761568702501,-231.87970886,0.00014999,2]
[392496651,1761568702523,-232.29432824,0.00016499,2]
[392496652,1761568793266,-183.89438937,0.00014999,2]
[392496653,1761568795874,-303.72449935,0.00014999,2]
[392496654,1761568797970,-12.38111128,0.00014999,2]
[392496655,1761568798000,-305.79781264,0.00014999,2]
[392496656,1761568804346,-194.20218736,0.00014999,2]
[392496657,1761568804371,-20.87941024,0.00014999,2]
[392496658,1761568806957,-464.75535796,0.00014999,2]
[392496659,1761568823165,-14.3652318,0.00014999,2]
[392496660,1761568823187,-149.68487092,0.00014999,2]
[392496661,1761568825824,-245.11332243,0.00014999,2]
[392496662,1761568828184,-105.20180665,0.00014999,2]
[392496663,1761568828208,-111.76588459,0.00014999,2]
[392496664,1761568829647,-323.54188956,0.00014999,2]
[392496665,1761568831763,-64.69222585,0.00014999,2]
[392496666,1761568831788,-247.92164056,0.00014999,2]
[392496667,1761568836669,-252.07835944,0.00014999,2]
[392496668,1761568836689,-22.98056766,0.00014999,2]
[392496669,1761568853318,-322.43822166,0.00014999,2]
[392496670,1761568855925,-154.58121068,0.00014999,2]
[392496671,1761568855950,-17.70567176,0.00016499,2]
[392496672,1761568855974,-195.0,0.00016499,2]
[392496673,1761568855996,-163.20336806,0.00016499,2]
[392496674,1761568935894,500.0,0.00012,2]
[392496675,1761568945895,-86.79663194,0.00016499,2]
[392496678,1761568987276,70.585071,0.00014999,2]
[392496679,1761568987304,387.771556,0.00014999,2]
[392496680,1761568987330,51.813373,0.00014999,2]
[392496681,1761568987524,448.186627,0.00014999,2]
[392496682,1761568987550,61.983373,0.00014999,2]
[392496683,1761568987763,188.016627,0.00014999,2]
[392496684,1761568987788,295.38363727,0.00014999,2]
[392496685,1761568987861,26.76973573,0.00014999,2]
[392496686,1761568988029,130.61196721,0.00014999,2]
[392496687,1761568988090,298.551556,0.00014999,2]
[392496688,1761568988135,81.00647679,0.00014999,2]
[392496689,1761568988266,83.4790153,0.00014999,2]
[392496690,1761568988316,201.425782,0.00014999,2]
[392496691,1761568988368,201.425782,0.00014999,2]
[392496692,1761568988426,23.8394207,0.00014999,2]
[392496693,1761568988553,274.7347973,0.00014999,2]
[392496694,1761568988605,152.75,0.00014999,2]
[392496695,1761568988652,82.6852027,0.00014999,2]
[392496696,1761568988768,109.31334425,0.00014999,2]
[392496697,1761568988964,400.85665575,0.00014999,2]
[392496698,1761568989062,510.17,0.00014999,2]
[392496699,1761568989203,510.17,0.00014999,2]
[392496700,1761568989445,96.58559249,0.00014999,2]
[392496701,1761568989474,413.58440751,0.00014999,2]
[392496702,1761568989684,301.70668992,0.00014999,2]
[392496703,1761568989721,81.83695901,0.00014999,2]
[392496704,1761568990965,-126.62635107,0.00014999,2]
[392496705,1761568990987,-129.11315535,0.00014999,2]
[392496706,1761568996048,-191.47291386,0.00014999,2]
[392496707,1761568998152,-170.81251661,0.00014999,2]
[392496708,1761569002146,-18.77141418,0.00014999,2]
[392496709,1761569002168,-135.05858582,0.00014999,2]
[392496710,1761569012273,386.93170409,0.00014899,2]
[392496711,1761569013131,-181.68675171,0.00014999,2]
[392496712,1761569014745,-156.65877296,0.00014999,2]
[392496713,1761569017084,-36.76588951,0.00014999,2]
[392496714,1761569017114,-150.30106984,0.00014999,2]
[392496715,1761569033738,-196.59701418,0.00014999,2]
[392496716,1761569035851,-163.27191598,0.00014999,2]
[392496717,1761569035874,-26.62410351,0.00014999,2]
[392496718,1761569037388,-207.12097892,0.00014999,2]
[392496719,1761569041554,-276.42491757,0.00014999,2]
[392496720,1761569041577,-91.9487321,0.00014999,2]
[392496721,1761569043856,-302.0,0.00014999,2]
[392496722,1761569046493,-116.2212679,0.00014999,2]
[392496723,1761569046516,-101.18306365,0.00014999,2]
[392496724,1761569048014,-305.03942694,0.00014999,2]
[392496725,1761569052845,-103.94750941,0.00014999,2]
[392496726,1761569052868,-211.92106984,0.00014999,2]
[392496727,1761569054384,-298.24893016,0.00014999,2]
[392496728,1761569054406,-3.75106984,0.00014999,2]
[392496729,1761569055895,-264.76492536,0.00014999,2]
[392496731,1761569059653,-241.6540048,0.00014999,2]
[392496732,1761569059676,-75.17735005,0.00014999,2]
[392496733,1761569062361,-330.10618402,0.00014999,2]
[392496734,1761569065458,-104.88646593,0.00014999,2]
[392496735,1761569065482,-125.27692311,0.00014999,2]
[392496736,1761569067896,-370.22705656,0.00014999,2]
[392496738,1761569069846,-14.66602033,0.00014999,2]
[392496739,1761569069868,-453.86906516,0.00014999,2]
[392496740,1761569072633,-56.30093484,0.00014999,2]
[392496741,1761569072657,-155.34911626,0.00014999,2]
[392496742,1761569076409,-247.85573749,0.00014999,2]
[392496744,1761569093205,-106.96514625,0.00014999,2]
[392496745,1761569093228,-75.53599427,0.00014999,2]
[392496746,1761569096405,-279.0,0.00014999,2]
[392496747,1761569100202,-155.63697338,0.00014999,2]
[392496748,1761569100225,-150.36302662,0.00014999,2]
[392496749,1761569101801,-257.38951814,0.00014998,2]
[392496750,1761569104334,-42.61048186,0.00014998,2]
[392496751,1761569104357,-219.56258461,0.00014998,2]
[392496752,1761569106105,-80.43741539,0.00014998,2]
[392496753,1761569106140,-143.9703392,0.00014998,2]
[392496754,1761569109869,-183.59944995,0.00014998,2]
[392496755,1761569113627,-259.76641038,0.00014998,2]
[392496756,1761569116108,-164.26,0.00014998,2]
[392496757,1761569118152,-228.25644588,0.00014998,2]
[392496758,1761569120810,-220.14735459,0.00014998,2]
[392496759,1761569120833,-0.90842564,0.00014999,2]
[392496760,1761569126773,-278.33826323,0.00014999,2]
[392496761,1761569128747,-70.39028451,0.00014999,2]
[392496762,1761569128769,-285.38014062,0.00014999,2]
[392496763,1761569132623,-214.61985938,0.00014999,2]
[392496764,1761569132650,-200.30866884,0.00014999,2]
[392496765,1761569135777,-299.69133116,0.00014999,2]
[392496766,1761569135798,-3.05866884,0.00014999,2]
[392496767,1761569153399,-181.87214721,0.00014999,2]
[392496768,1761569156765,-215.49004977,0.00014999,2]
[392496769,1761569158922,-99.57913418,0.00014999,2]
[392496770,1761569158944,-126.26014062,0.00014999,2]
[392496771,1761569161247,-195.3269923,0.00014999,2]
[392496772,1761569164050,-158.64797477,0.00014998,2]
[392496773,1761569166310,-141.35202523,0.00014998,2]
[392496774,1761569166333,-9.68659118,0.00014999,2]
[392496775,1761569166355,-18.51554474,0.00014999,2]
[392496776,1761569167640,-191.14,0.00014999,2]
[392496777,1761569172466,-160.2938176,0.00014999,2]
[392496778,1761569174538,-130.05063766,0.00014999,2]
[392496779,1761569174561,-57.22160263,0.00014999,2]
[392496780,1761569176770,-316.95481389,0.00014999,2]
[392496781,1761569179941,-163.83420644,0.00014999,2]
[392496782,1761569182679,-25.73506579,0.00014999,2]
[392496783,1761569182702,-172.24230622,0.00014999,2]
[392496784,1761569188215,-234.48375742,0.00014999,2]
[392496785,1761569190891,-93.27393636,0.00014999,2]
[392496786,1761569191020,-116.66593584,0.00014999,2]
[392496787,1761569192342,-229.34319529,0.00014999,2]
[392496788,1761569196807,-153.99086887,0.00014999,2]
[392496789,1761569196830,-27.62187195,0.00014999,2]
[392496790,1761569213232,-410.01030129,0.00014999,2]
[392496791,1761569215871,-62.36782676,0.00014999,2]
[392496792,1761569215895,-160.0,0.00015,2]
[392496793,1761569215916,-24.40913939,0.00016415,2]
[392496794,1761569219879,-224.74328951,0.00016415,2]
[392496795,1761569221351,-170.8475711,0.00016415,2]
[392496796,1761569221374,-301.95839257,0.00016498,2]
[392496797,1761569225313,-155.47749682,0.00016498,2]
[392496798,1761569228095,-211.97489474,0.00016498,2]
[392496799,1761569229936,-211.1692457,0.00016498,2]
[392496800,1761569231929,-172.0307543,0.00016498,2]
[392496801,1761569235321,-627.38921587,0.00016498,2]
[392496802,1761569235342,-250.0,0.00016499,2]
[392496803,1761569235363,-140.81041904,0.00016712,2]
[392496804,1761569236090,-55.03958096,0.00016712,2]
[392496805,1761569236110,-250.0,0.00017,2]
[392496806,1761569236131,-587.0,0.00017965,2]
[392496807,1761569236153,-1176.68122781,0.00018148,2]
[392496808,1761569242150,-1174.31877219,0.00018148,2]
[392496809,1761569242171,-303.724499,0.00019078,2]
[392496810,1761569242191,-386.93170409,0.00019174,2]
[392496811,1761569242210,-373.0,0.00019662,2]
[392496812,1761569242231,-3292.0,0.00019962,2]
[392496813,1761569242250,-310.48716245,0.00021875,2]
[392496814,1761569245078,-189.51283755,0.00021875,2]
[392496815,1761569245099,-165.1930955,0.00021875,2]
[392496822,1761569351261,-306.29701461,0.00019949,2]
[392496823,1761569351284,-252.13112862,0.00020049,2]
[392496824,1761569351303,-182.13222298,0.00020049,2]
[392496825,1761569351324,-193.46585205,0.00021775,2]
[392496826,1761569351348,-1200.0,0.00021874,2]
[392496827,1761569351368,-431.83309203,0.00021875,2]
[392496828,1761569351388,-500.0,0.00021875,2]
[392496829,1761569351408,-507.85207779,0.00021875,2]
[392496830,1761569351428,-504.14520199,0.00021875,2]
[392496831,1761569351448,-500.0,0.00021875,2]
[392496832,1761569351468,-502.67293591,0.00021875,2]
[392496833,1761569351488,-500.0,0.00021875,2]
[392496834,1761569351508,-500.0,0.00021875,2]
[392496835,1761569351528,-2478.68708402,0.00021959,2]
[392496836,1761569354070,-428.49776374,0.00021959,2]
[392496837,1761569358088,-1208.81515224,0.00021959,2]
[392496838,1761569358110,-2446.83,0.00021978,2]
[392496839,1761569358131,-916.84,0.00022371,2]
[392496840,1761569358150,-522.46311979,0.00022392,2]
[392496841,1761569358169,-193.46585204,0.00022392,2]
[392496842,1761569358190,-1683.41877193,0.00022394,2]
[392496844,1761569359090,-363.3776692,0.00022394,2]
[392496845,1761569360103,-2280.76817042,0.00022394,2]
[392496846,1761569360125,-173.08911381,0.00022394,2]
[392496847,1761569360146,-167.91541486,0.00022394,2]
[392496848,1761569360167,-490.18236572,0.00022423,2]
[392496867,1761569431868,-300.0,0.00020775,2]
[392496868,1761569431878,-700.0,0.00020776,2]
[392496869,1761569431889,-1438.57329821,0.00020776,2]
[392496870,1761569431901,-698.52133594,0.00020776,2]
[392496871,1761569431912,-985.92817948,0.00020776,2]
[392496872,1761569432190,-654.48917961,0.00020776,2]
[392496873,1761569432205,-1505.82637114,0.00020776,2]
[392496889,1761569438105,-2815.00298422,0.00020776,2]
[392496890,1761569439927,-225861.8822574,0.00020776,2]
[392496891,1761569439937,-509.81763428,0.00022423,2]
[392496892,1761569439947,-1000.0,0.00022423,2]
[392496893,1761569439957,-176.0,0.00022483,120]
[392496894,1761569439966,-163.08,0.00022484,2]
[392496896,1761569439976,-1071.94596581,0.0002249,2]
[392496897,1761569439985,-500.0,0.00022491,2]
[392496898,1761569439995,-198.54451056,0.00022491,2]
[392496899,1761569440004,-384.44882869,0.00022491,2]
[392496900,1761569440014,-170.80410494,0.00022491,2]
[392496901,1761569440023,-500.0,0.00022491,2]
[392496902,1761569440032,-500.0,0.00022491,2]
[392496903,1761569440041,-500.0,0.00022491,2]
[392496904,1761569440051,-500.0,0.00022491,2]
[392496905,1761569440060,-500.0,0.00022491,2]
[392496906,1761569440069,-500.0,0.00022491,2]
[392496907,1761569440079,-500.0,0.00022491,2]
[392496908,1761569440088,-500.0,0.00022491,2]
[392496909,1761569440098,-500.0,0.00022491,2]
[392496910,1761569440107,-500.0,0.00022491,2]
[392496911,1761569440117,-500.0,0.00022491,2]
[392496912,1761569440126,-500.0,0.00022491,2]
[392496913,1761569440135,-500.0,0.00022491,2]
[392496914,1761569440145,-500.0,0.00022491,2]
[392496915,1761569440154,-400.0,0.00022491,2]
[392496916,1761569440163,-500.0,0.00022491,2]
[392496917,1761569440173,-500.0,0.00022491,2]
[392496918,1761569440182,-500.0,0.00022491,2]
[392496919,1761569440191,-500.0,0.00022491,2]
[392496920,1761569440200,-500.0,0.00022491,2]
[392496921,1761569440209,-500.0,0.00022491,2]
[392496922,1761569440218,-500.0,0.00022491,2]
[392496923,1761569440227,-500.0,0.00022491,2]
[392496924,1761569440240,-500.0,0.00022491,2]
[392496925,1761569440252,-500.0,0.00022491,2]
[392496926,1761569440261,-500.0,0.00022491,2]
[392496927,1761569440271,-500.0,0.00022491,2]
[392496928,1761569440281,-500.0,0.00022491,2]
[392496929,1761569440290,-500.0,0.00022491,2]
[392496930,1761569440300,-500.0,0.00022491,2]
[392496931,1761569440309,-500.0,0.00022491,2]
[392496932,1761569440321,-500.0,0.00022491,2]
[392496933,1761569440331,-500.0,0.00022491,2]
[392496934,1761569440341,-500.0,0.00022491,2]
[392496935,1761569440350,-500.0,0.00022491,2]
[392496936,1761569440360,-500.0,0.00022491,2]
[392496937,1761569440370,-500.0,0.00022491,2]
[392496938,1761569440380,-500.0,0.00022491,2]
[392496939,1761569440390,-500.0,0.00022491,2]
[392496940,1761569440510,-500.0,0.00022491,2]
[392496941,1761569440520,-500.0,0.00022491,2]
[392496942,1761569440529,-500.0,0.00022491,2]
[392496943,1761569440539,-500.0,0.00022491,2]
[392496944,1761569440548,-500.0,0.00022491,2]
[392496945,1761569440558,-500.0,0.00022491,2]
[392496946,1761569440568,-500.0,0.00022491,2]
[392496948,1761569440577,-500.0,0.00022491,2]
[392496949,1761569440586,-500.0,0.00022491,2]
[392496950,1761569440595,-500.0,0.00022491,2]
[392496951,1761569440612,-500.0,0.00022491,2]
[392496952,1761569440621,-500.0,0.00022491,2]
[392496953,1761569440630,-500.0,0.00022491,2]
[392496954,1761569440640,-500.0,0.00022491,2]
[392496955,1761569440650,-500.0,0.00022491,2]
[392496956,1761569440659,-500.0,0.00022491,2]
[392496957,1761569440669,-500.0,0.00022491,2]
[392496958,1761569440679,-500.0,0.00022491,2]
[392496959,1761569440689,-500.0,0.00022491,2]
[392496960,1761569440700,-500.0,0.00022491,2]
[392496961,1761569440710,-500.0,0.00022491,2]
[392496962,1761569440719,-500.0,0.00022491,2]
[392496963,1761569440729,-500.0,0.00022491,2]
[392496964,1761569440739,-500.0,0.00022491,2]
[392496965,1761569440750,-500.0,0.00022491,2]
[392496966,1761569440759,-500.0,0.00022491,2]
[392496967,1761569440769,-500.0,0.00022491,2]
[392496968,1761569440780,-202.15389428,0.00022491,2]
[392496969,1761569440790,-500.0,0.00022491,2]
[392496970,1761569440801,-500.0,0.00022491,2]
[392496971,1761569440810,-500.0,0.00022491,2]
[392496972,1761569440821,-500.0,0.00022491,2]
[392496973,1761569440831,-500.0,0.00022491,2]
[392496974,1761569440839,-500.0,0.00022491,2]
[392496975,1761569440848,-500.0,0.00022491,2]
[392496976,1761569440858,-500.0,0.00022491,2]
[392496977,1761569440867,-500.0,0.00022491,2]
[392496978,1761569440877,-500.0,0.00022491,2]
[392496979,1761569440886,-500.0,0.00022491,2]
[392496980,1761569440895,-500.0,0.00022491,2]
[392496981,1761569440904,-500.0,0.00022491,2]
[392496982,1761569440913,-500.0,0.00022491,2]
[392496983,1761569440922,-500.0,0.00022491,2]
[392496984,1761569440932,-500.0,0.00022491,2]
[392496985,1761569440941,-500.0,0.00022491,2]
[392496986,1761569440950,-500.0,0.00022491,2]
[392496987,1761569440959,-558.08615578,0.00022491,2]
[392496988,1761569440968,-500.0,0.00022491,2]
[392496989,1761569440977,-211.37502642,0.00022493,2]
[392496990,1761569440986,-274.47108296,0.00022493,2]
[392496991,1761569440996,-500.0,0.00022493,2]
[392496992,1761569441005,-284.30614628,0.00022493,2]
[392496993,1761569441014,-510.12248291,0.00022493,2]
[392496994,1761569441023,-500.0,0.00022493,2]
[392496995,1761569441033,-401591.4,0.00022494,7]
[392496996,1761569441042,-163.74460704,0.00022494,2]
[392496997,1761569441051,-420.0,0.00022604,2]
[392496998,1761569441060,-250.0,0.0002267,2]
[392496999,1761569441071,-448.69950113,0.00022971,2]
[392497000,1761569441081,-1500.0,0.00022971,2]
[392497001,1761569441090,-501.62053605,0.00022973,2]
[392497002,1761569441099,-515.69815063,0.00022973,2]
[392497003,1761569441108,-500.0,0.00022973,2]
[392497004,1761569441117,-500.0,0.00022973,2]
[392497005,1761569441127,-500.0,0.00022973,2]
[392497006,1761569441136,-160.31874271,0.00022973,2]
[392497007,1761569441145,-500.0,0.00022973,2]
[392497008,1761569441154,-504.0802137,0.00022973,2]
[392497009,1761569441164,-500.0,0.00022973,2]
[392497010,1761569441175,-500.0,0.00022973,2]
[392497011,1761569441191,-500.0,0.00022973,2]
[392497012,1761569441203,-164.09226785,0.00022973,2]
[392497013,1761569441213,-500.0,0.00022973,2]
[392497014,1761569441222,-500.0,0.00022973,2]
[392497015,1761569441231,-500.0,0.00022973,2]
[392497016,1761569441241,-234660.223606,0.00022982,2]
[392497017,1761569441250,-2000.0,0.00023519,2]
[392497018,1761569441260,-904.00526626,0.00023521,2]
[392497019,1761569441270,-1000.0,0.00023521,2]
[392497020,1761569441279,-1005.85403293,0.00023521,2]
[392497021,1761569441289,-500.0,0.00023521,2]
[392497022,1761569441299,-1000.0,0.00023521,2]
[392497023,1761569441308,-1000.0,0.00023521,2]
[392497024,1761569441319,-1000.0,0.00023521,2]
[392497025,1761569441328,-504.98609285,0.00023521,2]
[392497026,1761569441337,-1115.33592914,0.00023521,2]
[392497027,1761569441348,-880.82170321,0.00023549,2]
[392497028,1761569441357,-4327.56461154,0.00024028,2]
[392497029,1761569441366,-539.02100756,0.00024067,2]
[392497030,1761569441376,-1500.0,0.00024068,2]
[392497031,1761569441386,-1500.0,0.00024068,2]
[392497032,1761569441397,-658.94,0.00024124,2]
[392497033,1761569441408,-173.08911379,0.00024496,2]
[392497034,1761569441417,-587.0,0.00024594,2]
[392497035,1761569441427,-2000.0,0.00024616,2]
[392497036,1761569441436,-524.62284478,0.00024616,2]
[392497037,1761569441447,-130395.223648,0.000248,3]
[392497038,1761569441456,-508.88606453,0.00024899,2]
[392497039,1761569441465,-500.0,0.00024899,2]
[392497040,1761569441475,-544.19930532,0.00024899,2]
[392497041,1761569441484,-500.0,0.00024932,2]
[392497042,1761569441493,-543.64962942,0.00025164,2]
[392497043,1761569441503,-408.25963816,0.00025173,2]
[392497044,1761569441512,-500.0,0.00025173,2]
[392497045,1761569441521,-500.0,0.00025173,2]
[392497046,1761569441531,-525.11752755,0.00025173,2]
[392497047,1761569441540,-501.16205196,0.00025173,2]
[392497048,1761569441550,-500.0,0.00025173,2]
[392497049,1761569441559,-345.68088519,0.00025173,2]
[392497050,1761569441569,-315.53270343,0.00025173,2]
[392497051,1761569441579,-500.0,0.00025173,2]
[392497052,1761569441588,-500.0,0.00025173,2]
[392497053,1761569441598,-500.0,0.00025173,2]
[392497054,1761569441611,-171.27779401,0.00025173,2]
[392497055,1761569441620,-200.0,0.00025173,2]
[392497056,1761569441629,-180.50584811,0.00025178,2]
[392497057,1761569441639,-150.71,0.00025178,2]
[392497058,1761569441649,-234660.223606,0.00025188,2]
[392497059,1761569441658,-4327.56461154,0.00025663,2]
[392497060,1761569441667,-1000.0,0.00025721,2]
[392497061,1761569441680,-1000.0,0.00025721,2]
[392497062,1761569441800,-506.24497269,0.00025721,2]
[392497063,1761569441818,-565.91116325,0.00025721,2]
[392497064,1761569441827,-400.0,0.00025858,2]
[392497065,1761569441837,-1500.0,0.00026268,2]
[392497066,1761569441847,-1500.0,0.00026268,2]
[392497067,1761569441856,-600.0,0.00026542,2]
[392497068,1761569441865,-173.08911379,0.00026598,2]
[392497069,1761569441874,-823.0,0.00026758,2]
[392497070,1761569441883,-2000.0,0.00026816,2]
[392497071,1761569441893,-2000.0,0.00026816,2]
[392497072,1761569441902,-150.0,0.00027152,2]
[392497073,1761569441912,-800.0,0.00027227,2]
[392497074,1761569441922,-4327.56461154,0.00027297,2]
[392497075,1761569441932,-2500.0,0.00027364,2]
[392497076,1761569441941,-423.71003807,0.00027364,2]
[392497077,1761569441951,-234660.223606,0.00027394,2]
[392497078,1761569441960,-300.0,0.00027397,2]
[392497079,1761569441969,-1678.06,0.000274,2]
[392497080,1761569441978,-1678.06,0.000274,2]
[392497081,1761569441987,-1678.06,0.000274,2]
[392497082,1761569441997,-1678.06,0.000274,2]
[392497083,1761569442006,-1678.06,0.000274,2]
[392497084,1761569442015,-177.72,0.00027691,2]
[392497085,1761569442024,-3000.0,0.00027912,5]
[392497086,1761569442033,-1013.27365705,0.00027912,5]
[392497087,1761569442043,-1364.68685412,0.0002846,5]
[392497088,1761569442053,-173.08911379,0.000287,2]
[392497089,1761569442062,-151.0,0.00028928,7]
[392497090,1761569442072,-4327.56461154,0.00028931,2]
[392497091,1761569442082,-13535.0,0.00029,2]
[392497092,1761569442091,-1152.0,0.00029114,2]
[392497093,1761569442104,-200.0,0.000295,5]
[392497094,1761569442114,-151.58346849,0.000295,5]
[392497095,1761569442124,-150.0,0.000295,5]
[392497096,1761569442133,-18627.8890926,0.0002969,3]
[392497097,1761569442143,-167.91541485,0.00029751,15]
[392497098,1761569442153,-5515.0,0.000298,3]
[392497099,1761569442162,-1000.0,0.0003,120]
[392497100,1761569442172,-462.0166154,0.00030029,2]
[392497101,1761569442183,-250.0,0.00030048,5]
[392497102,1761569442193,-4327.56461154,0.00030566,2]
[392497103,1761569442203,-350.0,0.00030596,5]
[392497104,1761569442212,-5515.0,0.000306,5]
[392497105,1761569442222,-15858.0146148,0.00030759,3]
[392497106,1761569442231,-2446.83,0.00030769,2]
[392497107,1761569442240,-173.08911379,0.00030801,2]
[392497108,1761569442250,-323.6214945,0.0003087,5]
[392497109,1761569442259,-500.0,0.00030899,2]
[392497110,1761569442268,-376.28033291,0.00031144,5]
[392497111,1761569442278,-1432.26,0.00031446,2]
[392497112,1761569442287,-1240.0,0.00031677,2]
[392497113,1761569442297,-194.1495,0.00031738,2]
[392497114,1761569442306,-174.0340419,0.00032,120]
[392497115,1761569442316,-4327.56461154,0.000322,2]
[392497116,1761569442328,-385.49,0.00032463,2]
[392497117,1761569442338,-201.49,0.00032469,2]
[392497118,1761569442348,-1000.0,0.00032475,7]
[392497119,1761569442358,-2714.0,0.00032577,2]
[392497120,1761569442367,-500.0,0.00032809,5]
[392497121,1761569442377,-523.99533253,0.00032809,5]
[392497122,1761569442387,-500.0,0.00032809,2]
[392497123,1761569442397,-1000.0,0.00032844,2]
[392497124,1761569442407,-500.0,0.00032876,2]
[392497125,1761569442417,-500.0,0.00032876,2]
[392497126,1761569442427,-173.08911379,0.00032903,2]
[392497127,1761569442437,-174.0340419,0.00033,120]
[392497128,1761569442446,-500.0,0.00033346,2]
[392497129,1761569442455,-18627.8890926,0.00033347,3]
[392497130,1761569442464,-330.745,0.00033357,35]
[392497131,1761569442474,-1000.0,0.00033357,5]
[392497132,1761569442484,-1000.0,0.00033357,2]
[392497133,1761569442494,-200.0,0.00033404,2]
[392497134,1761569442504,-150.0,0.0003346,4]
[392497135,1761569442513,-150.0,0.0003346,4]
[392497136,1761569442523,-150.0,0.0003346,4]